[Event "31st MPL National U18 Chess-ch 2022"]
[Site "Pollachi"]
[Date "2022.04.18"]
[Round "2.5"]
[White "Praveen K B"]
[Black "Harshad S"]
[Result "0-1"]
[ECO "D00"]
[WhiteElo "1450"]
[BlackElo "2328"]
[Annotator "TA"]
[PlyCount "252"]
[EventDate "2022.04.18"]
[EventCountry "IND"]
[SourceTitle "playchess.com"]
[Source "ChessBase"]
[SourceQuality "1"]
[TimeControl "5400+30"]

{[%evp 9,252,8,12,-3,0,-1,0,-8,0,0,10,-8,-6,-30,-30,-33,-25,-29,-34,-33,0,11,11,0,0,-73,-67,-117,-24,-136,-49,-56,-47,-75,-45,-58,-37,-77,-77,-77,-77,-79,-74,-101,-91,-249,-241,-239,-64,-56,-50,-202,0,0,0,0,22,0,0,-16,0,0,0,0,0,-16,-16,-16,-16,-16,-16,-16,-16,-16,-16,-16,-16,-16,-8,-8,0,0,0,-22,-20,-20,-20,-27,-16,-21,0,0,0,0,0,0,0,0,0,-8,-8,-8,0,0,0,-8,-8,-8,-8,-8,-8,-8,-8,-8,-8,-8,-8,-8,0,0,0,-8,-8,-29989,-29990,-29990,-29990,-29990,-29989,-29989,-56,-29988,-56,-23,-8,-8,-8,-8,-8,-8,-8,-8,-8,-8,-8,-8,-8,-8,-8,-8,0,-8,-8,-8,0,0,0,0,0,0,0,0,0,-8,0,0,0,-8,-8,-8,0,0,0,0,0,-8,0,-8,-8,-8,0,-8,-8,-8,-8,-8,-8,-8,-8,-8,0,0,0,0,0,0,0,0,0,0,0,-8,0,0,0,0,0,0,0,0,0,0,0,0,0,0,0,0,0,0,0,0,0,0,0,0,0,0,0,0,0,0,0,0,0,0,0,0,0,0,0,0,0,-29998,-29999]} 1. d4 {[%emt 0:00:15]} Nf6 {[%emt 0:01:11]} 2. Bf4 {[%emt 0:00:14]} e6 {[%emt 0:01:18]} 3. e3 {[%emt 0:00:17]} c5 {[%emt 0:01:06]} 4. c3 {[%emt 0:00:33]} d5 {[%emt 0:01:22]} 5. Nd2 {[%emt 0:02:28]} Bd6 {[%emt 0:02:30]} 6. Bg3 {[%emt 0:00:58] D00: 1 d4 d5: Unusual lines.} O-O {[%emt 0:02:50]} 7. Ngf3 {[%emt 0:00:17]} b6 {[%emt 0:02:48]} 8. Bd3 {[%emt 0:03:17] The position is equal. 8.Ne5 is more advanced technology.} Bb7 {[%emt 0:01:21]} 9. Ne5 {[%emt 0:00:57]} Ne4 {[%emt 0:07:26]} 10. Qc2 {[%emt 0:05:25][%cal Rd2e4]} f5 {[%emt 0:00:50]} 11. f4 {[%emt 0:02:35]} Nc6 {[%emt 0:06:58]} 12. O-O {[%emt 0:06:34] [#]} Rc8 $146 {[%emt 0:06:15]} ({Predecessor:} 12... Nxe5 13. dxe5 Be7 14. Nf3 Qc7 15. Rad1 Rfd8 16. Be1 Kh8 17. b4 Rac8 18. b5 Qd7 {½-½ (63) Lorenzo Martinez,R (1846)-Riu Lopez,S (1932) Barcelona 2018}) 13. Qd1 {[%emt 0:01:54]} Nxe5 {[%emt 0:10:46]} 14. dxe5 {[%emt 0:00:47]} Nxg3 {[%emt 0:08:05]} 15. hxg3 {[%emt 0:00:21]} Be7 {[%emt 0:00:09]} 16. Qe2 {[%emt 0:15:47]} Kh8 {[%emt 0:02:14]} 17. Rfd1 {[%emt 0:06:16]} (17. g4 $11) 17... g5 $17 {[%emt 0:02:59]} 18. Qh5 {[%emt 0:05:20]} (18. Ba6 $15 Bxa6 19. Qxa6) 18... Qe8 {[%emt 0:04:39]} (18... Rg8 $17 {White must now prevent ...gxf4.} 19. Nf3 Rg7 20. fxg5 Bxg5) 19. Qh6 {[%emt 0:02:35]} (19. Qxe8 $11 Rcxe8 20. Kf2) 19... Qg6 {[%emt 0:02:30]} (19... gxf4 $17 20. exf4 Qf7) 20. Qxg6 $15 {[%emt 0:00:19]} hxg6 {[%emt 0:00:01]} 21. Kf2 {[%emt 0:04:21]} Kg7 {[%emt 0:00:18]} 22. Be2 {[%emt 0:10:50]} Rfd8 {[%emt 0:03:28]} 23. Nb3 {[%emt 0:07:07]} g4 {[%emt 0:03:13]} 24. Rh1 {[%emt 0:03:51]} Rh8 {[%emt 0:01:17]} (24... a6 {is interesting.} 25. Rac1 g5 26. Rh5 Rh8) 25. Rxh8 {[%emt 0:00:53]} Rxh8 {[%emt 0:00:23]} 26. Rd1 {[%emt 0:00:32]} g5 {[%emt 0:00:46]} 27. e4 $2 {[%emt 0:05:06]} (27. a4 $17 {was worth a try.}) 27... gxf4 $19 {[%emt 0:02:34]} (27... fxe4 28. Bxg4 gxf4 29. gxf4 $17) (27... dxe4 28. Rd7 Kf8 29. Rxb7 $18) 28. gxf4 {[%emt 0:03:24]} Bh4+ $2 {[%emt 0:01:27]} (28... dxe4 29. Rd7 Kf8 30. Rxb7 $18) (28... fxe4 29. Bxg4 Rh6 30. Be2 $17) (28... g3+ $1 $19 29. Kxg3 Bh4+ 30. Kf3 fxe4+ 31. Kg4 Bf2) 29. g3 $15 {[%emt 0:01:08]} Be7 {[%emt 0:00:26] Threatens to win with ...Rh2+.} 30. Kg1 {[%emt 0:05:55] [#] Prevents Rh2.} (30. exf5 $15 Rh2+ 31. Kf1 exf5 32. Rd2) 30... Bc6 $2 {[%emt 0:05:19]} (30... fxe4 31. Bxg4 Bc6 32. Kg2 $15 (32. Bxe6 $2 e3 $19)) (30... dxe4 $2 31. Rd7 Bd5 32. c4 $18) ({Black should try} 30... Rh3 $1 $19 {[%cal Rh3g3]} 31. Kg2 d4) 31. exf5 $11 {[%emt 0:00:47]} exf5 {[%emt 0:00:04] And now ...Rh3 would win.} 32. Bf1 {[%emt 0:00:25] Against Rh3} d4 {[%emt 0:19:57]} 33. Bg2 {[%emt 0:00:43]} (33. cxd4 $5 {[%cal Rd4d5]} Bf3 34. Rd2 $11) 33... Ba4 {[%emt 0:00:00] ...dxc3 is the strong threat.} 34. Bd5 {[%emt 0:03:31]} dxc3 {[%emt 0:01:00]} 35. bxc3 {[%emt 0:00:02]} c4 {[%emt 0:00:00]} 36. Bxc4 {[%emt 0:01:12]} Rc8 {[%emt 0:00:00]} 37. Be6 {[%emt 0:01:07]} Rxc3 {[%emt 0:00:00]} 38. Bd7 {[%emt 0:00:53]} ({Much worse is} 38. Bxf5 Rxg3+ 39. Kf2 Rf3+ 40. Kg2 Rxf4 $19) 38... Bxb3 {[%emt 0:01:20]} 39. axb3 {[%emt 0:01:04]} Rxg3+ {[%emt 0:00:25][%mdl 4096] Endgame KRB-KRB} 40. Kh2 {[%emt 0:00:00]} Rf3 {[%emt 0:00:29]} 41. Bxf5 {[%emt 0:00:25]} Rxf4 {[%emt 0:00:03]} 42. Bc8 {[%emt 0:00:22]} Kg6 {[%emt 0:00:53]} 43. Rd7 {[%emt 0:00:27][%csl LRa7,LRe7]} Bh4 {[%emt 0:00:32]} 44. Rxa7 {[%emt 0:00:33]} Rf2+ {[%emt 0:00:45]} 45. Kg1 {[%emt 0:00:27]} Rf3 {[%emt 0:00:30]} 46. Kh2 {[%emt 0:00:39]} Bg3+ {[%emt 0:00:26]} 47. Kg2 {[%emt 0:00:25]} Bxe5 {[%emt 0:00:12]} 48. Rb7 {[%emt 0:00:27]} Rxb3 {[%emt 0:00:53]} 49. Bxg4 {[%emt 0:00:23]} Rg3+ {[%emt 0:00:19]} 50. Kf2 {[%emt 0:00:38]} Rxg4 {[%emt 0:00:11]} 51. Rxb6+ {[%emt 0:01:14] KRB-KR} Kf5 {[%emt 0:00:01]} 52. Rb5 {[%emt 0:00:00]} Ke4 {[%emt 0:00:09]} 53. Rb7 {[%emt 0:00:01]} Bd4+ {[%emt 0:00:17]} 54. Kf1 {[%emt 0:00:45]} Kd3 {[%emt 0:00:44][%csl Gd4][%cal Rg4g1]} 55. Rb3+ {[%emt 0:00:37]} Kc2 {[%emt 0:02:21]} 56. Ra3 {[%emt 0:00:23]} Kd2 {[%emt 0:00:00][%csl Gd4][%cal Rg4g1]} 57. Rg3 {[%emt 0:00:14] Against Rg1+} Rf4+ {[%emt 0:00:00]} 58. Kg2 {[%emt 0:00:01]} Ke2 {[%emt 0:00:00]} 59. Ra3 {[%emt 0:00:39]} Rf8 {[%emt 0:00:16]} 60. Ra2+ {[%emt 0:01:50]} Ke3 {[%emt 0:00:02]} 61. Ra3+ {[%emt 0:00:00]} Ke4 {[%emt 0:00:15]} 62. Rh3 {[%emt 0:00:12]} Be5 {[%emt 0:00:15]} 63. Ra3 {[%emt 0:00:16]} Rg8+ {[%emt 0:00:14]} 64. Kf1 {[%emt 0:00:58]} Bd4 {[%emt 0:00:14]} 65. Rh3 {[%emt 0:00:11]} Be3 {[%emt 0:00:38]} 66. Rh7 $2 {[%emt 0:00:45][%mdl 8192] [#]} (66. Ke2 $11) 66... Kd3 $1 {[%emt 0:00:26][%csl Ge3][%cal Rg8g1]} 67. Rh1 {[%emt 0:00:16]} Rg7 {[%emt 0:00:48]} 68. Ke1 {[%emt 0:00:14]} Rg2 {[%emt 0:01:47]} 69. Kf1 {[%emt 0:00:28]} Rf2+ $2 {[%emt 0:00:08]} (69... Rg4 70. Ke1 Rg7 71. Kf1 Kd2 72. Rh2+ Kd1 73. Rd2+ Bxd2 74. Kf2 Rf7+ 75. Kg3 Ke2 76. Kg4 Be3 77. Kh5 Rg7 78. Kh4 Kf3 79. Kh5 Rg1 80. Kh4 Rh1#) 70. Ke1 $2 {[%emt 0:00:59][%mdl 8192]} (70. Kg1 $15) 70... Rc2 $2 {[%emt 0:00:45]} (70... Rf6 {mates} 71. Rh2 Rb6 72. Kf1 Rg6 73. Rf2 Bxf2 74. Kxf2 Ke4 75. Ke2 Rg2+ 76. Kf1 Rd2 77. Ke1 Ke3 78. Kf1 Kf3 79. Kg1 Rd1+ 80. Kh2 Re1 81. Kh3 Rh1#) 71. Kf1 $15 {[%emt 0:00:12]} Ke4 {[%emt 0:00:33]} 72. Rh7 {[%emt 0:00:49]} Bf4 {[%emt 0:00:22]} 73. Rh3 {[%emt 0:00:14]} Rb2 {[%emt 0:00:30]} 74. Kg1 {[%emt 0:00:49]} Kf5 {[%emt 0:00:19]} 75. Kf1 {[%emt 0:00:24]} Kg4 {[%emt 0:00:05]} 76. Rd3 {[%emt 0:00:19]} Bg3 {[%emt 0:00:37]} 77. Ra3 {[%emt 0:00:46]} Rf2+ {[%emt 0:00:18]} 78. Kg1 {[%emt 0:00:01]} Re2 {[%emt 0:00:41]} 79. Kf1 {[%emt 0:00:30]} Rf2+ {[%emt 0:01:35]} 80. Kg1 {[%emt 0:00:02]} Rc2 {[%emt 0:00:04]} 81. Kf1 {[%emt 0:00:38]} Bf4 {[%emt 0:00:05]} 82. Ke1 {[%emt 0:00:26]} Rh2 {[%emt 0:00:21]} 83. Kd1 {[%emt 0:01:09]} Kf5 {[%emt 0:00:07]} 84. Ra4 {[%emt 0:00:19]} Be3 {[%emt 0:00:07]} 85. Rc4 {[%emt 0:00:44]} Ke5 {[%emt 0:00:06]} 86. Rc2 {[%emt 0:00:40]} Rh1+ {[%emt 0:00:07]} 87. Ke2 {[%emt 0:00:12]} Ke4 {[%emt 0:00:01]} 88. Rc3 {[%emt 0:00:26]} Rh2+ {[%emt 0:00:24]} 89. Kd1 {[%emt 0:00:32]} Bd4 {[%emt 0:01:04]} 90. Ra3 {[%emt 0:00:22]} Rb2 {[%emt 0:00:19]} 91. Kc1 {[%emt 0:00:47]} Rf2 {[%emt 0:00:17]} 92. Kd1 {[%emt 0:00:13]} Rg2 {[%emt 0:00:44]} 93. Ke1 {[%emt 0:00:48]} Be3 {[%emt 0:00:13]} 94. Kf1 {[%emt 0:00:45]} Rc2 {[%emt 0:00:05]} 95. Ra8 {[%emt 0:00:29]} Kf3 {[%emt 0:00:17][%cal Rc2c1]} 96. Rf8+ $1 {[%emt 0:00:21]} Bf4 {[%emt 0:00:01][%cal Rc2c1]} 97. Re8 {[%emt 0:00:01]} Rc7 {[%emt 0:00:31] Against Re7} 98. Re6 {[%emt 0:00:49]} (98. Re1 Rh7 99. Kg1 Bh2+ 100. Kh1 Bg3+ 101. Kg1) 98... Rh7 {[%emt 0:00:27][%cal Rh7h1]} 99. Rg6 {[%emt 0:00:10]} Rh2 {[%emt 0:00:25] Inhibits Rg2.} 100. Rg8 {[%emt 0:00:32]} Rf2+ {[%emt 0:00:10]} 101. Ke1 {[%emt 0:00:38]} Rc2 {[%emt 0:00:17][%cal Rc2c1]} 102. Rd8 {[%emt 0:00:26]} Rc7 {[%emt 0:01:32]} 103. Rd3+ {[%emt 0:00:40]} Be3 {[%emt 0:00:09]} 104. Rd8 {[%emt 0:00:21]} Rc1+ {[%emt 0:00:52]} 105. Rd1 {[%emt 0:00:03]} Rc2 {[%emt 0:00:05]} 106. Rd8 {[%emt 0:00:51]} Rc4 {[%emt 0:00:26]} 107. Rf8+ {[%emt 0:00:31]} Bf4 {[%emt 0:00:07][%cal Rc4c1]} 108. Rd8 {[%emt 0:00:13]} Rc7 {[%emt 0:00:29] Against Rd7} 109. Rd3+ {[%emt 0:00:12]} Be3 {[%emt 0:00:34]} 110. Rd8 {[%emt 0:00:03]} Re7 {[%emt 0:00:02]} 111. Kd1 {[%emt 0:00:33]} Rc7 {[%emt 0:00:07][%csl Ge3][%cal Rc7c1]} 112. Ke1 {[%emt 0:00:05]} (112. Rf8+ {gets mated.} Bf4) 112... Ke4 {[%emt 0:00:54] Prevents Rd3.} 113. Ke2 {[%emt 0:01:14]} Rc2+ {[%emt 0:00:02]} 114. Kd1 {[%emt 0:01:35]} Rg2 {[%emt 0:00:03]} 115. Ke1 {[%emt 0:00:38]} Bb6 {[%emt 0:00:18]} 116. Rd7 {[%emt 0:00:35]} Bd4 {[%emt 0:00:24]} 117. Re7+ {[%emt 0:00:33]} Kd3 {[%emt 0:00:09][%cal Rg2g1]} 118. Kd1 {[%emt 0:00:24]} Ra2 {[%emt 0:00:38][%cal Ra2a1]} 119. Rc7 {[%emt 0:00:10]} Ra8 {[%emt 0:00:11] Inhibits Rc8.} 120. Rc6 {[%emt 0:00:15]} Be5 {[%emt 0:00:21]} 121. Rc5 {[%emt 0:00:36]} Rb8 {[%emt 0:00:31]} 122. Rc6 {[%emt 0:00:59]} Bf4 {[%emt 0:00:17]} ({And not} 122... Rf8 123. Rd6+) 123. Ke1 {[%emt 0:00:19]} Be3 {[%emt 0:00:58] ( -> ...Rb1+)} 124. Rd6+ {[%emt 0:00:46]} Bd4 {[%emt 0:00:01][%cal Rb8b1]} 125. Kf1 {[%emt 0:00:13]} Rg8 {[%emt 0:00:01][%csl Gd4][%cal Rg8g1]} 126. Rg6 $2 {[%emt 0:00:06][%mdl 8192] Prevents Rg1+.} Rxg6 {[%emt 0:00:02] Weighted Error Value: White=0.20 (precise) /Black=0.16 (very precise)} 0-1

[Event "31st MPL National U18 Chess-ch 2022"]
[Site "Pollachi"]
[Date "2022.04.18"]
[Round "2.7"]
[White "Rohith Krishna S"]
[Black "Soham Kamotra"]
[Result "0-1"]
[ECO "B67"]
[WhiteElo "2304"]
[BlackElo "2229"]
[Annotator "TA"]
[PlyCount "64"]
[EventDate "2022.04.18"]
[EventCountry "IND"]
[SourceTitle "playchess.com"]
[Source "ChessBase"]
[SourceQuality "1"]
[TimeControl "5400+30"]

{[%evp 18,64,27,26,56,26,27,16,22,24,58,33,26,6,19,-13,41,37,44,45,46,43,70,0,0,0,193,-11,-9,-22,-26,-114,-10,-109,-45,-2058,-55,-45,-48,-724,-112,-248,-131,-522,-527,-623,-606,-618,-614]} 1. e4 {[%emt 0:00:02]} c5 {[%emt 0:00:46]} 2. Nf3 {[%emt 0:00:06]} d6 {[%emt 0:00:04]} 3. d4 {[%emt 0:00:07]} cxd4 {[%emt 0:00:05]} 4. Nxd4 {[%emt 0:00:07]} Nf6 {[%emt 0:00:04]} 5. Nc3 {[%emt 0:00:10]} Nc6 {[%emt 0:00:03]} 6. Bg5 {[%emt 0:00:09]} e6 {[%emt 0:00:05]} 7. Qd2 {[%emt 0:00:12]} a6 {[%emt 0:00:06]} 8. O-O-O {[%emt 0:00:08]} Bd7 $1 {[%emt 0:00:04] The main line 8...Bd7 scores better than 8...h6.} 9. f3 {[%emt 0:00:20]} Nxd4 {[%emt 0:00:08]} 10. Qxd4 {[%emt 0:00:08]} Be7 {[%emt 0:00:04] B67: Sicilian: Richter-Rauzer: 7...a6 8 0-0-0 Bd7, lines without 9 f4 Be7.} 11. Kb1 {[%emt 0:01:40]} Qc7 {[%emt 0:01:36]} 12. h4 {[%emt 0:02:00]} Rc8 {[%emt 0:05:59] The position is equal.} 13. g4 {[%emt 0:04:01]} h5 {[%emt 0:03:19]} 14. gxh5 {[%emt 0:01:45]} Nxh5 {[%emt 0:06:42] [#]} 15. Bh3 $146 {[%emt 0:10:33]} ({Predecessor:} 15. Qd2 b5 16. Bd3 b4 17. Ne2 a5 18. f4 Rb8 19. Rhf1 a4 20. e5 d5 21. f5 Bxg5 22. hxg5 exf5 23. Bxf5 Bxf5 24. Rxf5 {½-½ (44) Oparin,G (2622)-Gabrielian,A (2493) Batumi 2018}) 15... b5 {[%emt 0:03:32]} 16. Rhe1 {[%emt 0:03:27]} Nf6 {[%emt 0:30:48]} (16... a5 $11) 17. Qd2 $1 $14 {[%emt 0:04:46]} b4 {[%emt 0:01:49]} 18. Ne2 {[%emt 0:00:59]} a5 {[%emt 0:00:05]} 19. Nd4 $1 {[%emt 0:01:05]} a4 {[%emt 0:13:16]} 20. f4 {[%emt 0:10:50]} (20. Qxb4 $14 Rb8 21. Qd2 (21. Qa3 Qb6 $11)) 20... a3 $11 {[%emt 0:00:22]} 21. e5 $1 {[%emt 0:03:06]} axb2 $2 {[%emt 0:06:08] [#]} 22. exf6 $2 {[%emt 0:06:46]} ({White should try} 22. Nxe6 $1 $18 {[%mdl 512]} fxe6 23. exd6) 22... gxf6 {[%emt 0:00:03]} 23. f5 {[%emt 0:16:01][%cal Rf5e6]} e5 $36 {[%emt 0:00:29][%mdl 2048] Black has some pressure.} (23... fxg5 $2 24. fxe6 fxe6 25. Bxe6 Bxe6 26. Rxe6 $18) 24. Bh6 {[%emt 0:03:26]} (24. Be3 $1 $11 {remains equal.}) 24... Qc3 {[%emt 0:12:20]} (24... Ba4 $17 25. Re2 exd4) 25. Bg4 {[%emt 0:11:17] [#]} (25. Bg2 $1 $11) 25... Qxd2 {[%emt 0:07:12] Dancing on a razor blade.} (25... Qxd4 $2 26. Qxd4 exd4 27. Bg7 $18) (25... Qc4 $1 $17 {Hoping for ...Ra8.} 26. Bf3 Ba4) 26. Bg5 $2 {[%mdl 8192]} Qe3 $2 27. Bxe3 $15 {[%emt 0:00:35]} Rxh4 {[%emt 0:00:44]} ({Much worse is} 27... exd4 28. Bxd4 Kf8 29. h5 $14) 28. Bd2 $2 {[%emt 0:01:33][%mdl 8192]} exd4 $2 {[%emt 0:00:18]} (28... Rxg4 $19 {and Black stays clearly on top.} 29. Bxb4 Rc4 30. Bxd6 Bxd6) 29. Rg1 {[%emt 0:04:18]} (29. Rh1 $17 Rxh1 30. Rxh1) 29... Rc5 (29... Ba4 $19 30. Rde1 Bxc2+ 31. Kxb2 Kd7) 30. Bxb4 $2 {[%mdl 8192]} (30. Be1 $17 {is tougher.} Rh2 31. Rd2 Rxd2 32. Bxd2) 30... Rc4 $19 {[%emt 0:00:59] Black is clearly winning.} 31. Be1 {[%emt 0:12:32] [#]} d3 $1 {[%emt 0:00:15][%mdl 512]} 32. cxd3 {[%emt 0:01:14]} (32. Rxd3 Rhxg4) 32... Rhxg4 {[%emt 0:00:06] Weighted Error Value: White=1.09/Black=0.97} 0-1

[Event "31st MPL National U18 Chess-ch 2022"]
[Site "Pollachi"]
[Date "2022.04.19"]
[Round "3.1"]
[White "Bharath Subramaniyam H"]
[Black "Arul Anandh S P K"]
[Result "1-0"]
[ECO "A01"]
[WhiteElo "2508"]
[BlackElo "1759"]
[Annotator "TA"]
[PlyCount "141"]
[EventDate "2022.04.18"]
[EventCountry "IND"]
[SourceTitle "playchess.com"]
[Source "ChessBase"]
[SourceQuality "1"]
[TimeControl "5400+30"]

{[%evp 11,141,-1,-6,0,8,8,22,13,27,0,12,0,21,1,18,20,0,0,12,4,20,10,27,29,47,39,29,44,47,39,110,113,106,113,119,113,113,113,106,112,125,125,127,129,132,140,152,118,146,111,143,95,89,93,95,93,113,86,155,152,175,166,183,162,182,162,174,160,252,166,159,151,151,145,164,72,70,77,79,70,200,214,221,181,216,223,293,294,267,264,291,263,291,289,270,285,275,254,300,258,399,362,383,385,442,451,472,460,387,385,355,330,473,454,508,447,645,619,471,388,1064,1054,2128,1987,6885,6794,2001,1919,29968,29968,1762,961]} 1. b3 {[%emt 0:00:04]} e5 {[%emt 0:00:44]} 2. Bb2 {[%emt 0:00:06]} Nc6 {[%emt 0:00:04]} 3. c4 {[%emt 0:00:08]} Nf6 {[%emt 0:01:19]} 4. e3 {[%emt 0:00:08]} d5 {[%emt 0:03:22]} 5. cxd5 {[%emt 0:00:08]} Nxd5 {[%emt 0:00:18]} 6. a3 {[%emt 0:00:07]} Bd6 {[%emt 0:01:23]} 7. d3 $1 {[%emt 0:00:15][%mdl 4] outshines the older 7.Qc2. A01: Nimzowitsch-Larsen Opening.} Be6 {[%emt 0:02:30]} 8. Nf3 {[%emt 0:00:51]} O-O {[%emt 0:10:10]} 9. Nbd2 {[%emt 0:00:54] The position is equal.} f6 {[%emt 0:03:08]} 10. Be2 {[%emt 0:00:50]} Qe8 {[%emt 0:01:05]} 11. O-O {[%emt 0:03:09] [#]} Qg6 $146 {[%emt 0:00:41]} ({Predecessor:} 11... Rd8 12. Rc1 a5 13. Ne4 Be7 14. Nc5 Bc8 15. Qc2 f5 16. Rfd1 Kh8 17. Bf1 Qh5 18. Nxe5 Nxe5 19. Bxe5 {½-½ (33) Rubinas,P (2553)-Ostriker,J (2525) ICCF email 2013}) 12. Kh1 {[%emt 0:14:49]} Rad8 {[%emt 0:02:45]} 13. b4 {[%emt 0:06:23]} a6 {[%emt 0:02:00]} 14. Rc1 {[%emt 0:07:29]} Qh6 {[%emt 0:17:29]} 15. g3 {[%emt 0:35:16]} Nde7 {[%emt 0:29:08]} 16. Qc2 {[%emt 0:11:23]} Ng6 {[%emt 0:01:44]} 17. d4 {[%emt 0:04:03]} exd4 {[%emt 0:02:02]} 18. Nxd4 {[%emt 0:01:39]} Nxd4 {[%emt 0:00:21]} 19. Bxd4 {[%emt 0:00:07]} f5 {[%emt 0:04:06]} 20. Bc4 {[%emt 0:04:10]} Ne5 {[%emt 0:02:42]} (20... Ne7 $14) 21. Bxe5 $16 {[%emt 0:00:26]} Bxe5 {[%emt 0:00:15]} 22. Nf3 {[%emt 0:00:24]} Bd6 {[%emt 0:04:55] [#]} 23. Nd4 $1 {[%emt 0:00:18][%csl LRe6,LRf5]} Bxc4 {[%emt 0:03:30]} 24. Qxc4+ {[%emt 0:00:12]} Rf7 {[%emt 0:01:26]} 25. Nxf5 {[%emt 0:00:29]} Qh5 {[%emt 0:01:06]} 26. Nd4 {[%emt 0:03:44] Against Qf3+. &Bianco is more active.} Kh8 {[%emt 0:01:15]} 27. Kg1 {[%emt 0:01:03]} Rf6 {[%emt 0:00:31]} 28. Qe2 {[%emt 0:01:22]} Qg6 {[%emt 0:00:34]} 29. Rcd1 {[%emt 0:01:50]} Re8 {[%emt 0:00:23]} 30. Rd2 {[%emt 0:01:52]} h6 {[%emt 0:01:24]} 31. Re1 {[%emt 0:01:08]} (31. Rc1 $142) 31... c5 {[%emt 0:01:12]} 32. bxc5 {[%emt 0:00:23]} Bxc5 {[%emt 0:00:04]} 33. Qd3 {[%emt 0:00:53]} Qg4 {[%emt 0:00:47]} 34. Rb1 {[%emt 0:00:32]} b6 {[%emt 0:01:08]} (34... b5 $142) 35. Qxa6 {[%emt 0:00:36]} h5 {[%emt 0:00:24]} 36. Qe2 {[%emt 0:00:34]} Qg6 {[%emt 0:00:42]} 37. Qd3 {[%emt 0:00:08]} Qg4 {[%emt 0:00:23]} 38. h4 {[%emt 0:00:42]} Ref8 {[%emt 0:01:16]} 39. Kg2 {[%emt 0:00:45]} Bd6 {[%emt 0:00:08]} (39... Bxa3 $16 {keeps fighting.} 40. e4 Bc5) 40. f4 {[%emt 0:00:32] aiming for Nf3.} Rg6 {[%emt 0:00:50]} 41. Ne2 {[%emt 0:00:06]} Be7 {[%emt 0:00:04]} 42. Qd7 {[%emt 0:00:37]} ({And not} 42. Kg1 Bxh4 43. Qe4 Re6 $11) 42... Re6 {[%emt 0:00:29] [#]} 43. Nd4 {[%emt 0:00:41]} (43. Kf2 $1 $18 {and White stays clearly on top.}) 43... Rxe3 {[%emt 0:00:40]} 44. Qxg4 {[%emt 0:00:04]} hxg4 {[%emt 0:00:04]} 45. Rxb6 {[%emt 0:00:26]} Bxa3 {[%emt 0:00:27] A mistake that costs the game.} (45... Rxa3 $14 46. Re6 Bf6) 46. Nc2 $18 {[%emt 0:00:16]} Bc5 {[%emt 0:01:35]} 47. Rg6 {[%emt 0:00:37]} Re4 {[%emt 0:00:24]} 48. Rxg4 {[%emt 0:00:14]} Rfe8 {[%emt 0:00:03]} 49. Kf3 {[%emt 0:00:36] Inhibits Re2.} Rc4 {[%emt 0:00:59]} 50. Rg5 {[%emt 0:00:24]} Rc3+ {[%emt 0:00:29]} 51. Kg2 {[%emt 0:00:43]} Rc8 {[%emt 0:00:11]} 52. Rgd5 {[%emt 0:00:47]} Be7 {[%emt 0:00:17]} 53. Nd4 {[%emt 0:00:16]} Bf6 {[%emt 0:00:18]} 54. Nf3 {[%emt 0:00:24]} Re3 {[%emt 0:00:43]} 55. R5d3 {[%emt 0:00:13]} Re4 {[%emt 0:00:14]} (55... Rxd3 $142 56. Rxd3 Rc4) 56. Kh3 {[%emt 0:00:33]} Rce8 {[%emt 0:00:20]} 57. Kg4 {[%emt 0:00:31]} Ra4 {[%emt 0:00:48]} 58. Ng5 {[%emt 0:01:21]} Ra5 {[%emt 0:00:28]} 59. Rd5 {[%emt 0:00:11]} Ra3 {[%emt 0:00:11]} 60. R2d3 {[%emt 0:00:02]} Ra6 {[%emt 0:00:22]} 61. Rb5 {[%emt 0:00:56] Inhibits Rb6.} Rc6 {[%emt 0:00:35]} (61... Rea8 {might work better.} 62. Rd7 Re8) 62. Rdb3 {[%emt 0:00:10] Rb8 is the strong threat.} Kg8 {[%emt 0:00:34]} 63. Rb8 {[%emt 0:00:13][%cal Rb8e8]} Rcc8 {[%emt 0:00:04]} (63... Kf8 $142 64. Nh7+ Kf7 65. Rxe8 Kxe8 66. Nxf6+ Rxf6 67. Rb8+ Kf7) 64. Rxc8 {[%emt 0:00:05]} Rxc8 {[%emt 0:00:03][%mdl 4096] Endgame KRB-KRN} 65. Kf5 {[%emt 0:00:27] Threatens to win with Kg6.} Kf8 $2 {[%emt 0:00:07]} (65... Be7 66. Rb7 Rf8+ 67. Ke4 Bf6) 66. Rb7 {[%emt 0:01:15] Intending Ne6+ and mate.} Kg8 {[%emt 0:00:13]} 67. Kg6 {[%emt 0:00:29] White threatens Ne6 and mate.} Rc6 {[%emt 0:00:34] Inhibits Ne6.} 68. Rb8+ {[%emt 0:00:21]} Bd8+ {[%emt 0:00:05]} 69. Kf5 {[%emt 0:00:06][%cal Rb8d8]} Rf6+ {[%emt 0:00:04]} 70. Kg4 {[%emt 0:00:42]} Rd6 {[%emt 0:00:08]} 71. f5 {[%emt 0:00:07] Weighted Error Value: White=0.13 (very precise) /Black=0.21 (precise)} 1-0